bitfinex/quotes_BTCUSD_20240729
["timestamp","ask_amount","ask_price","bid_price","bid_amount"]
[1722257723073,0.00806,69994.0,69992.0,0.00832516]
[1722257723347,0.1454,69993.0,69992.0,0.00832516]
[1722257723817,0.1454,69993.0,69971.0,0.14309939]
[1722257723818,0.0595309,69994.0,69990.0,0.00732516]
[1722257724047,0.1465,69990.0,69986.0,0.00732516]
[1722257724307,0.32844355,69991.0,69986.0,0.00732516]
[1722257724535,0.1435,69988.0,69986.0,0.00732516]
[1722257724772,0.1435,69987.0,69986.0,0.00732516]
[1722257726900,0.1435,69987.0,69986.0,0.01032516]
[1722257728033,0.3504,69987.0,69986.0,0.01332516]
[1722257728652,0.3504,69987.0,69986.0,0.006]
[1722257729091,0.35894403,69987.0,69986.0,0.006]
[1722257729930,0.50204342,69987.0,69986.0,0.006]
[1722257730392,0.54488134,69987.0,69986.0,0.006]
[1722257732059,0.40178195,69987.0,69986.0,0.006]
[1722257732263,0.42419824,69987.0,69986.0,0.006]
[1722257732472,0.40177471,69987.0,69986.0,0.006]
[1722257732686,0.40177457,69987.0,69986.0,0.006]
[1722257733303,0.19487457,69987.0,69986.0,0.01332516]
[1722257733554,0.19487457,69987.0,69986.0,0.006]
[1722257734318,0.19487457,69987.0,69986.0,0.01332516]
[1722257734936,0.15204403,69987.0,69986.0,0.01332516]
[1722257735115,0.19487457,69987.0,69986.0,0.01332516]
[1722257735322,0.15204403,69987.0,69986.0,0.01332516]
[1722257736034,0.17446707,69987.0,69986.0,0.01332516]
[1722257736954,0.15204403,69987.0,69986.0,0.01332516]
[1722257737592,0.07284403,69987.0,69986.0,0.01332516]
[1722257737836,0.00854403,69987.0,69986.0,0.01332516]
[1722257738245,0.00806,69994.0,69993.0,0.00732516]
[1722257738447,0.00806,69994.0,69993.0,0.15019616]
[1722257738651,0.01640226,69994.0,69993.0,0.15019616]
[1722257738874,0.00806,69994.0,69993.0,0.29179616]
[1722257739081,0.00806,69994.0,69993.0,0.14892516]
[1722257739310,0.00806,69994.0,69993.0,0.29179616]
[1722257739538,0.00806,69994.0,69993.0,0.14892516]
[1722257740183,0.03047864,69994.0,69993.0,0.14892516]
[1722257740656,0.00806,69994.0,69993.0,0.73263755]
[1722257741100,0.00806,69994.0,69993.0,0.72063755]
[1722257741305,0.00806,69994.0,69993.0,0.73489555]
[1722257741510,0.00806,69994.0,69993.0,1.02063755]
[1722257741975,0.00806,69994.0,69993.0,1.30637955]
[1722257742183,0.00806,69994.0,69993.0,1.32037955]
[1722257742711,0.00806,69994.0,69993.0,0.46289555]
[1722257742914,0.00806,69994.0,69993.0,1.04863755]
[1722257743127,0.00806,69994.0,69993.0,0.60602455]
[1722257743305,0.00806,69994.0,69993.0,0.59202455]
[1722257743542,0.00806,69994.0,69993.0,0.73489555]
[1722257743747,0.00806,69994.0,69993.0,0.74889555]
[1722257743952,0.00806,69994.0,69993.0,0.24012455]
[1722257744154,0.03047791,69994.0,69993.0,0.24012455]
[1722257744548,0.03047791,69994.0,69993.0,0.38299555]
[1722257744753,0.03047791,69994.0,69993.0,0.09702516]
[1722257744951,0.91257791,69999.0,69993.0,0.03702516]
[1722257745377,0.85047791,69999.0,69993.0,0.03702516]
[1722257745817,0.85047791,69999.0,69993.0,0.014]
[1722257746319,0.85047791,69999.0,69993.0,0.028]
[1722257746698,0.85047791,69999.0,69993.0,0.014]
[1722257746875,0.85047791,69999.0,69993.0,0.028]
[1722257747916,0.85047791,69999.0,69994.0,0.28279939]
[1722257748111,0.85047791,69999.0,69998.0,0.728583]
[1722257748345,0.85047791,69999.0,69998.0,0.87168239]
[1722257749201,0.85047791,69999.0,69998.0,0.72882139]
[1722257749387,0.85047791,69999.0,69998.0,1.15740439]
[1722257749592,0.85047791,69999.0,69998.0,1.29710439]
[1722257750063,0.85047791,69999.0,69998.0,1.01138239]
[1722257750389,0.85047791,69999.0,69998.0,0.58279939]
[1722257750595,0.85047791,69999.0,69998.0,0.72566039]
[1722257751034,0.85047791,69999.0,69998.0,0.14309939]
[1722257751641,0.87289379,69999.0,69998.0,0.14309939]
[1722257752485,0.94443734,69999.0,69998.0,0.013]
[1722257752693,1.22099379,69999.0,69998.0,0.013]
[1722257752900,0.00128719,69998.0,69986.0,0.442885]
[1722257753075,1.19857791,69999.0,69985.0,0.0627]
[1722257753326,0.99167791,69999.0,69990.0,0.142877]
[1722257753574,0.99167791,69999.0,69991.0,0.14309939]
[1722257753795,1.06322146,69999.0,69985.0,0.0627]
[1722257754013,1.06322146,69999.0,69981.0,0.468]
[1722257754014,1.27012146,69999.0,69998.0,0.014]
[1722257754230,1.19857791,69999.0,69998.0,0.014]
[1722257756081,1.19857791,69999.0,69982.0,0.14309939]
[1722257756303,0.0015542,69998.0,69982.0,0.14309939]
[1722257756535,1.22983898,69999.0,69994.0,0.01]
[1722257756758,0.1493,69998.0,69994.0,0.01]
[1722257760114,0.17171814,69998.0,69994.0,0.01]
[1722257761652,0.1493,69998.0,69994.0,0.01]
[1722257762553,0.1406,69996.0,69993.0,0.000924]
[1722257762967,0.2069,69998.0,69993.0,0.000924]
[1722257762968,0.05,69994.0,69993.0,0.000924]
[1722257763183,0.05,69994.0,69982.0,0.01]
[1722257763184,0.1484,69992.0,69982.0,0.01]
[1722257763383,0.2069,69989.0,69976.0,0.7843]
[1722257763594,0.1423,69988.0,69982.0,0.42926131]
[1722257763825,0.85990322,69999.0,69994.0,0.012]
[1722257764055,0.85990322,69999.0,69994.0,0.15509939]
[1722257764284,0.85990322,69999.0,69994.0,0.012]
[1722257764494,0.1474,69998.0,69994.0,0.012]
[1722257764907,1.06680322,69999.0,69994.0,0.15509939]
[1722257765118,0.85990322,69999.0,69994.0,0.012]
[1722257765527,0.1446,69998.0,69983.0,0.0654]
[1722257766272,0.1446,69998.0,69994.0,0.004]
[1722257766478,0.13244355,69995.0,69994.0,0.004]
[1722257766677,0.1381,69995.0,69994.0,0.004]
[1722257767539,0.90265329,69999.0,69997.0,0.1]
[1722257767742,0.85131791,69999.0,69998.0,0.57168239]
[1722257768223,0.85131791,69999.0,69998.0,0.28596039]
[1722257768649,0.85131791,69999.0,69998.0,0.57168239]
[1722257768856,0.85131791,69999.0,69998.0,0.85740439]
[1722257768981,0.85131791,69999.0,69998.0,0.57168239]
[1722257769383,0.87373373,69999.0,69998.0,0.57168239]
[1722257769585,0.85131791,69999.0,69998.0,0.57168239]
[1722257769970,0.85131791,69999.0,69998.0,0.58168239]
[1722257770143,0.85131791,69999.0,69998.0,0.57168239]
[1722257770563,0.85131791,69999.0,69998.0,0.58168239]
[1722257770781,0.85131791,69999.0,69998.0,1.33572639]
[1722257771135,0.85131791,69999.0,69998.0,1.47743318]
[1722257771540,0.85131791,69999.0,69998.0,1.59143318]
[1722257771920,0.85131791,69999.0,69998.0,1.49142227]
[1722257772282,0.85131791,69999.0,69998.0,1.47272639]
[1722257772463,0.85131791,69999.0,69998.0,1.59142413]
[1722257772623,0.85131791,69999.0,69998.0,1.60542413]
[1722257772820,0.85131791,69999.0,69998.0,1.60742413]
[1722257773020,0.87373106,69999.0,69998.0,1.60542413]
[1722257774232,0.85131791,69999.0,69998.0,1.60742413]
[1722257774737,0.85131791,69999.0,69998.0,1.60542413]
[1722257775091,0.85131791,69999.0,69998.0,1.50542413]
[1722257775309,0.85131791,69999.0,69998.0,1.90542413]
[1722257775512,0.85131791,69999.0,69998.0,1.89142212]
[1722257775772,0.85131791,69999.0,69998.0,1.87742212]
[1722257775942,0.85131791,69999.0,69998.0,1.89142212]
[1722257776937,0.85131791,69999.0,69998.0,1.87742212]
[1722257777147,0.85131791,69999.0,69998.0,0.82739512]
[1722257777345,0.85131791,69999.0,69998.0,0.44256039]
[1722257777569,0.85131791,69999.0,69998.0,0.74228239]
[1722257777570,0.87373055,69999.0,69998.0,0.74228239]
[1722257777771,0.87373055,69999.0,69998.0,1.09228239]
[1722257777973,0.87373055,69999.0,69998.0,0.79256039]
[1722257778149,0.87373055,69999.0,69998.0,0.15709939]
[1722257778350,0.87373055,69999.0,69998.0,0.45709939]
[1722257778552,0.87373055,69999.0,69998.0,0.94968239]
[1722257778828,0.87373055,69999.0,69998.0,0.93568239]
[1722257779177,0.87373055,69999.0,69998.0,1.37470439]
[1722257779790,0.87373055,69999.0,69998.0,1.39770439]
[1722257780145,0.85131791,69999.0,69998.0,1.39770439]
[1722257780316,0.85131791,69999.0,69998.0,1.38370439]
[1722257780540,0.85131791,69999.0,69998.0,1.39770439]
[1722257781080,0.85131791,69999.0,69998.0,1.06198239]
[1722257781289,0.85131791,69999.0,69998.0,0.82626039]
[1722257781504,0.85131791,69999.0,69998.0,0.61039939]
[1722257781699,0.85131791,69999.0,69998.0,0.17109939]
[1722257782909,0.87373125,69999.0,69998.0,0.17109939]
[1722257783526,0.85131791,69999.0,69998.0,0.17109939]
[1722257783932,0.85131791,69999.0,69998.0,0.31396039]
[1722257784473,0.85131791,69999.0,69998.0,0.88540439]
[1722257784671,0.85131791,69999.0,69998.0,0.59968239]
[1722257786840,0.87373165,69999.0,69998.0,0.88540239]
[1722257787553,0.87373165,69999.0,69998.0,0.93540239]
[1722257787800,0.87373165,69999.0,69998.0,1.38752439]
[1722257788953,0.87373165,69999.0,69998.0,1.12880239]
[1722257789342,0.87373165,69999.0,69998.0,1.04600239]
[1722257789545,0.87373165,69999.0,69998.0,0.76028039]
[1722257789688,0.87373165,69999.0,69998.0,0.55681939]
[1722257790091,0.87373165,69999.0,69998.0,0.45681939]
[1722257790743,0.85131791,69999.0,69998.0,0.31372]
[1722257792416,0.99071791,69999.0,69998.0,0.31372]
[1722257793814,1.01313483,69999.0,69998.0,0.31372]
[1722257794621,1.01313483,69999.0,69998.0,0.29972]
[1722257794819,1.01313483,69999.0,69998.0,0.31172]
[1722257795091,1.01313483,69999.0,69998.0,0.29772]
[1722257795092,1.06226146,69999.0,69998.0,0.29772]
[1722257795297,1.09071791,69999.0,69998.0,0.28572]
[1722257795496,1.09071791,69999.0,69998.0,0.29972]
[1722257795706,1.09071791,69999.0,69998.0,0.30372]
[1722257795919,1.09071791,69999.0,69998.0,0.28572]
[1722257796137,1.13346781,69999.0,69998.0,0.28572]
[1722257796340,1.09071791,69999.0,69998.0,0.28772]
[1722257796560,1.09071791,69999.0,69998.0,0.28972]
[1722257797887,1.16226146,69999.0,69998.0,0.28972]
[1722257798310,1.30536085,69999.0,69998.0,0.28972]
[1722257798565,1.25623561,69999.0,69998.0,0.28972]
[1722257799951,1.25623561,69999.0,69998.0,0.19910241]
[1722257800151,1.26450196,69999.0,69998.0,0.19910241]
[1722257800963,1.24208365,69999.0,69998.0,0.19910241]
[1722257801498,1.09898426,69999.0,69998.0,0.19910241]
[1722257804289,1.12140221,69999.0,69998.0,0.19910241]
[1722257804721,1.09898426,69999.0,69998.0,0.19910241]
[1722257806376,0.95958426,69999.0,69998.0,0.19910241]
[1722257806896,0.85958426,69999.0,69998.0,0.19910241]
[1722257807963,0.88200119,69999.0,69998.0,0.19710241]
[1722257808378,0.88200119,69999.0,69998.0,0.20610241]
[1722257808909,0.95354474,69999.0,69998.0,0.20410241]
[1722257809208,0.88200119,69999.0,69998.0,0.20410241]
[1722257809409,0.94260119,69999.0,69998.0,0.21310241]
[1722257809541,1.02460119,69999.0,69998.0,0.21310241]
[1722257809739,1.02460119,69999.0,69998.0,0.20410241]
[1722257810543,1.02460119,69999.0,69998.0,0.21210241]
[1722257811784,1.02460119,69999.0,69998.0,0.20410241]
[1722257814643,1.02460119,69999.0,69998.0,0.21310241]
[1722257817700,0.88200119,69999.0,69998.0,0.21310241]
[1722257820305,1.02390119,69999.0,69998.0,0.21310241]
[1722257822950,1.16700058,69999.0,69998.0,0.21310241]
[1722257823177,1.16700058,69999.0,69993.0,0.000924]
[1722257823178,1.02510058,69999.0,69993.0,0.000924]
[1722257823375,0.2069,69994.0,69993.0,0.000924]
[1722257823987,0.3507,69994.0,69993.0,0.000924]
[1722257824195,0.49379939,69994.0,69993.0,0.000924]
[1722257825166,0.60796286,69994.0,69982.0,0.468]
[1722257825383,0.2069,69983.0,69975.0,0.5329]
[1722257825555,0.0603,69982.0,69975.0,0.468]
[1722257825772,0.2069,69976.0,69975.0,0.468]
[1722257825975,0.2069,69976.0,69971.0,0.3]
[1722257826621,0.2069,69976.0,69969.0,0.0791]
[1722257827322,0.2069,69976.0,69966.0,0.0616]
[1722257829290,0.0224235,69974.0,69966.0,0.0616]
[1722257830020,0.0224235,69974.0,69966.0,0.0686]
[1722257830247,0.0224235,69974.0,69966.0,0.0616]
[1722257830529,0.0234235,69974.0,69966.0,0.0686]
[1722257831233,0.0234235,69974.0,69966.0,0.007]
[1722257831696,0.2705,69969.0,69966.0,0.007]
[1722257832583,0.0636,69969.0,69966.0,0.007]
[1722257833711,0.0636,69969.0,69966.0,0.007924]
[1722257834398,0.0636,69969.0,69966.0,0.000924]
[1722257834842,0.0646,69969.0,69966.0,0.014924]
[1722257838209,0.14309939,69968.0,69966.0,0.014924]
[1722257838463,0.1459,69967.0,69966.0,0.014924]
[1722257838711,0.1459,69967.0,69966.0,0.028924]
[1722257840330,0.1459,69967.0,69966.0,0.014924]
[1722257841014,0.1459,69967.0,69966.0,0.018924]
[1722257841692,0.1459,69967.0,69966.0,0.004924]
[1722257842164,0.16832793,69967.0,69966.0,0.004924]
[1722257842422,0.16832793,69967.0,69966.0,0.002924]
[1722257842659,0.16832793,69967.0,69966.0,0.004924]
[1722257846814,0.1459,69967.0,69966.0,0.004924]
[1722257847298,0.10823505,69969.0,69966.0,0.004924]
[1722257847519,0.00823505,69969.0,69966.0,0.004924]
[1722257847746,0.1761,69979.0,69966.0,0.004924]
[1722257847978,0.14309939,69978.0,69966.0,0.004924]
[1722257848213,0.1,69977.0,69966.0,0.004924]
[1722257848499,0.1,69977.0,69949.0,0.5295]
[1722257848500,0.07154355,69967.0,69949.0,0.5295]
[1722257848743,0.2069,69957.0,69949.0,0.5295]
[1722257850357,0.2069,69957.0,69949.0,0.5375]
[1722257850358,0.2079,69957.0,69949.0,0.5375]
[1722257850830,0.2069,69957.0,69949.0,0.5295]
[1722257851290,0.2069,69957.0,69949.0,0.5375]
[1722257851291,0.2079,69957.0,69949.0,0.5375]
[1722257851519,0.001,69957.0,69949.0,0.5295]
[1722257851753,0.0753,69965.0,69949.0,0.5295]
[1722257851754,0.1753,69965.0,69949.0,0.5295]
[1722257852476,0.001,69957.0,69949.0,0.5375]
[1722257852698,0.001,69957.0,69956.0,0.3]
[1722257853126,0.1616,69971.0,69956.0,0.3]
[1722257853588,0.001,69965.0,69956.0,0.3]
[1722257854026,0.001,69957.0,69956.0,0.3]
[1722257854502,0.02342721,69957.0,69956.0,0.301]
[1722257854716,0.001,69957.0,69956.0,0.301]
[1722257854940,0.0162906,69971.0,69956.0,0.3]
[1722257855158,0.001,69965.0,69957.0,0.0619]
[1722257856452,0.001,69965.0,69958.0,0.0808]
[1722257857112,0.0152906,69971.0,69958.0,0.0808]
[1722257857352,0.007,69971.0,69958.0,0.0798]
[1722257857594,0.1,69974.0,69958.0,0.0798]
[1722257857836,0.1,69974.0,69958.0,0.0858]
[1722257858047,0.001,69965.0,69958.0,0.0918]
[1722257858258,0.022427,69968.0,69958.0,0.0858]
[1722257858480,0.1,69974.0,69958.0,0.0798]
[1722257858481,0.001,69971.0,69958.0,0.0798]
[1722257860059,0.11230224,69974.0,69958.0,0.0798]
[1722257860723,0.001,69965.0,69960.0,0.07154355]
[1722257860940,0.001,69971.0,69960.0,0.07154355]
[1722257861373,0.001,69971.0,69969.0,0.1493]
[1722257861579,0.02342598,69971.0,69969.0,0.1493]
[1722257862222,0.001,69971.0,69963.0,0.1375]
[1722257862668,0.001,69971.0,69953.0,0.17154355]
[1722257862669,0.2069,69973.0,69960.0,0.0652]
[1722257862873,0.01390977,69972.0,69960.0,0.0652]
[1722257863079,0.2069,69973.0,69960.0,0.0652]
[1722257863280,0.04889682,69972.0,69960.0,0.0652]
[1722257863491,0.2069,69973.0,69960.0,0.0652]
[1722257863712,0.04889751,69972.0,69960.0,0.0652]
[1722257863937,0.03440945,69971.0,69960.0,0.0652]
[1722257864137,0.06990224,69974.0,69960.0,0.0652]
[1722257864138,0.2069,69967.0,69960.0,0.0652]
[1722257864345,0.2069,69967.0,69952.0,0.3]
[1722257864556,0.2069,69967.0,69950.0,0.1436]
[1722257864557,0.2069,69961.0,69950.0,0.1436]
[1722257864765,0.2069,69955.0,69950.0,0.1436]
[1722257865408,0.001,69965.0,69954.0,0.3]
[1722257865616,0.001,69961.0,69954.0,0.3]
[1722257866461,0.34999939,69967.0,69954.0,0.3]
[1722257866877,0.001,69955.0,69954.0,0.3]
[1722257867979,0.001,69955.0,69954.0,0.311]
[1722257868174,0.001,69955.0,69954.0,0.3]
[1722257868609,0.25800922,69967.0,69954.0,0.3]
[1722257868885,0.03441963,69966.0,69954.0,0.303]
[1722257869481,0.03441963,69966.0,69954.0,0.3]
[1722257869482,0.07725093,69966.0,69954.0,0.3]
[1722257869842,0.001,69955.0,69954.0,0.314]
[1722257870053,0.002,69955.0,69954.0,0.328]
[1722257870254,0.001,69955.0,69954.0,0.314]
[1722257870461,0.02242834,69964.0,69954.0,0.3]
[1722257871040,0.0428313,69965.0,69954.0,0.3]
[1722257871262,0.02242834,69962.0,69954.0,0.305]
[1722257871468,0.00099999,69961.0,69954.0,0.305]
[1722257871691,0.02242834,69962.0,69954.0,0.305]
[1722257872102,0.00099999,69961.0,69954.0,0.005]
[1722257872515,0.00099999,69961.0,69954.0,0.01]
[1722257872728,0.02242834,69962.0,69954.0,0.005]
[1722257872934,0.00099999,69961.0,69950.0,0.144524]
[1722257873142,0.02242834,69962.0,69950.0,0.144524]
[1722257873354,0.02242834,69962.0,69954.0,0.01]
[1722257873355,0.001,69961.0,69954.0,0.01]
[1722257873767,0.00099999,69960.0,69954.0,0.01]
[1722257873969,0.02242834,69962.0,69954.0,0.0619]
[1722257874372,0.001,69961.0,69955.0,0.0815]
[1722257875750,0.001,69961.0,69954.0,0.0689]
[1722257875751,0.001,69961.0,69954.0,0.0619]
[1722257875957,0.04287853,69964.0,69954.0,0.0619]
[1722257876162,0.001,69961.0,69955.0,0.011]
[1722257876379,0.001,69960.0,69955.0,0.011]
[1722257877049,0.001,69961.0,69955.0,0.011]
[1722257878117,0.001,69961.0,69954.0,0.0619]
[1722257878329,0.04287853,69963.0,69954.0,0.0619]
[1722257879224,0.04287853,69963.0,69955.0,0.07154355]
[1722257879225,0.04289044,69963.0,69955.0,0.07154355]
[1722257879429,0.04289044,69962.0,69955.0,0.07154355]
[1722257879849,0.06531877,69962.0,69955.0,0.08154355]
[1722257880070,0.001,69961.0,69955.0,0.08154355]
[1722257880529,0.001,69961.0,69955.0,0.07154355]
[1722257880750,0.04289044,69963.0,69955.0,0.07154355]
[1722257881168,0.04289044,69963.0,69954.0,0.0619]
[1722257881466,0.04289237,69963.0,69954.0,0.0689]
[1722257881689,0.04289237,69961.0,69954.0,0.007]
[1722257881919,0.04289237,69959.0,69954.0,0.007]
[1722257882141,0.04289237,69957.0,69954.0,0.007]
[1722257882625,0.41293856,69955.0,69954.0,0.007]
[1722257882874,0.3486,69955.0,69954.0,0.007]
[1722257883134,0.3486,69955.0,69950.0,0.000924]
[1722257883135,0.43438475,69955.0,69950.0,0.000924]
[1722257883420,0.06434883,69952.0,69950.0,0.000924]
[1722257883636,0.04289267,69951.0,69950.0,0.000924]
[1722257884508,0.43438475,69955.0,69950.0,0.000924]
[1722257884509,0.3486,69955.0,69950.0,0.000924]
[1722257884739,0.03450414,69951.0,69950.0,0.000924]
[1722257884954,0.17760353,69951.0,69950.0,0.000924]
[1722257885668,0.26335059,69951.0,69950.0,0.000924]
[1722257885925,0.40365059,69951.0,69950.0,0.000924]
[1722257886154,0.40365059,69951.0,69942.0,0.468]
[1722257886155,0.3472,69943.0,69942.0,0.468]
[1722257886621,0.2069,69943.0,69942.0,0.468]
[1722257888276,0.2069,69943.0,69932.0,0.000924]
[1722257889236,0.2069,69933.0,69932.0,0.000924]
[1722257890684,0.22933676,69933.0,69932.0,0.000924]
[1722257891380,0.23033676,69933.0,69932.0,0.009924]
[1722257894149,0.02343676,69933.0,69932.0,0.009924]
[1722257895810,0.02343676,69933.0,69932.0,0.015924]
[1722257896041,0.03173445,69933.0,69932.0,0.015924]
[1722257896521,0.23863445,69933.0,69932.0,0.015924]
[1722257896774,0.29893445,69933.0,69932.0,0.015924]
[1722257897038,0.37483445,69933.0,69932.0,0.015924]
[1722257897264,0.23863445,69933.0,69932.0,0.015924]
[1722257897731,0.23863445,69933.0,69932.0,1.70499539]
[1722257897732,0.02343676,69933.0,69932.0,1.70499539]
[1722257897964,0.001,69933.0,69932.0,1.41300339]
[1722257898491,0.001,69933.0,69932.0,1.19855494]
[1722257898721,0.001,69933.0,69932.0,0.91256294]
[1722257898959,0.001,69933.0,69932.0,1.09855494]
[1722257899463,0.002,69933.0,69932.0,0.52656294]
[1722257899717,0.002,69933.0,69932.0,0.92656294]
[1722257900223,0.002,69933.0,69932.0,1.21255494]
[1722257900463,0.002,69933.0,69932.0,0.64046755]
[1722257901158,0.02443423,69933.0,69932.0,0.64046755]
[1722257901388,0.001,69933.0,69932.0,0.63146755]
[1722257901635,0.001,69933.0,69932.0,0.77446355]
[1722257901877,0.00837658,69941.0,69932.0,0.77446355]
[1722257902392,0.1422,69949.0,69932.0,0.77446355]
[1722257903098,0.2069,69953.0,69940.0,0.14]
[1722257903099,0.0661,69953.0,69940.0,0.14]
[1722257903329,0.1,69952.0,69940.0,0.14]
[1722257904288,0.02243343,69950.0,69940.0,0.282978]
[1722257904519,0.02243343,69950.0,69940.0,0.14]
[1722257907884,0.02243343,69950.0,69940.0,0.145]
[1722257908052,0.00084,69952.0,69940.0,0.145]
[1722257909761,0.00084,69952.0,69940.0,0.005]
[1722257909982,0.2069,69947.0,69940.0,0.005]
[1722257910189,0.0782,69946.0,69940.0,0.005]
[1722257910965,0.0782,69946.0,69936.0,0.1492]
[1722257911638,0.0782,69946.0,69940.0,0.005]
[1722257913739,0.2069,69947.0,69940.0,0.005]
[1722257913966,0.14393939,69952.0,69940.0,0.005]
[1722257913967,0.08,69950.0,69940.0,0.005]
[1722257915152,0.08,69950.0,69937.0,0.07154355]
[1722257915594,0.02243389,69947.0,69937.0,0.07154355]
[1722257916702,0.08,69950.0,69937.0,0.07154355]
[1722257916914,0.08,69950.0,69940.0,0.008]
[1722257919755,0.08,69950.0,69940.0,0.003]
[1722257920059,0.02243384,69948.0,69937.0,0.07154355]
[1722257920283,0.08,69950.0,69937.0,0.08054355]
[1722257920502,0.08,69950.0,69937.0,0.07154355]
[1722257920689,0.08,69950.0,69940.0,0.005]
[1722257921170,0.08,69950.0,69937.0,0.08054355]
[1722257921385,0.08,69950.0,69937.0,0.07154355]
[1722257921386,0.12279974,69950.0,69937.0,0.07154355]
[1722257921617,0.12279974,69950.0,69936.0,0.1492]
[1722257921837,0.12279974,69950.0,69937.0,0.07654355]
[1722257922534,0.12282844,69950.0,69937.0,0.07654355]
[1722257923393,0.02243417,69947.0,69937.0,0.07654355]
[1722257924039,0.02243417,69947.0,69937.0,0.07154355]
[1722257924249,0.02243417,69947.0,69937.0,0.07854355]
[1722257925330,0.02243417,69947.0,69937.0,0.08754355]
[1722257925539,0.06526261,69947.0,69937.0,0.08754355]
[1722257925743,0.06529544,69947.0,69937.0,0.08754355]
[1722257927306,0.06529544,69947.0,69937.0,0.08054355]
[1722257927919,0.01441483,69946.0,69937.0,0.08954355]
[1722257928158,0.0572761,69946.0,69937.0,0.08954355]
[1722257928343,0.04286127,69946.0,69937.0,0.08954355]
[1722257928588,0.10596127,69945.0,69937.0,0.018]
[1722257928813,0.10598195,69945.0,69937.0,0.009]
[1722257929042,0.10598195,69945.0,69936.0,0.1492]
[1722257929259,0.0826,69938.0,69936.0,0.1492]
[1722257929688,0.08675713,69947.0,69938.0,0.1399]
[1722257929689,0.12548197,69946.0,69938.0,0.1399]
[1722257929899,0.0826,69946.0,69939.0,0.14309939]
[1722257930350,0.02243405,69945.0,69939.0,0.14309939]
[1722257931676,0.02243405,69945.0,69939.0,0.15409939]
[1722257932779,0.0826,69949.0,69939.0,0.15409939]
[1722257933199,0.04287935,69950.0,69939.0,0.15409939]
[1722257933444,0.03451783,69949.0,69939.0,0.15409939]
[1722257933871,0.03451783,69949.0,69939.0,0.022]
[1722257934092,0.11641783,69949.0,69939.0,0.011]
[1722257934300,0.0819,69949.0,69939.0,0.011]
[1722257934514,0.03451565,69948.0,69939.0,0.016]
[1722257934730,0.0819,69949.0,69939.0,0.005]
[1722257934731,0.1447,69949.0,69939.0,0.005]
[1722257934942,0.1447,69949.0,69939.0,0.012]
[1722257935153,0.1447,69949.0,69939.0,0.08354355]
[1722257935571,0.1447,69949.0,69939.0,0.07654355]
[1722257935988,0.02243394,69947.0,69939.0,0.08454355]
[1722257936195,0.1447,69949.0,69939.0,0.08454355]
[1722257936401,0.1447,69949.0,69939.0,0.07954355]
[1722257936824,0.18757945,69949.0,69939.0,0.07954355]
[1722257937412,0.18757945,69949.0,69939.0,0.07154355]
[1722257937824,0.03452023,69948.0,69939.0,0.07154355]
[1722257938240,0.07739968,69948.0,69939.0,0.07154355]
[1722257938478,0.04289017,69948.0,69939.0,0.07154355]
[1722257938719,0.04289017,69948.0,69939.0,0.07754355]
[1722257938950,0.1447,69949.0,69939.0,0.07754355]
[1722257939159,0.07740778,69948.0,69939.0,0.07754355]
[1722257939384,0.04289695,69948.0,69939.0,0.07754355]
[1722257939602,0.1447,69949.0,69939.0,0.07754355]
[1722257939603,0.02243405,69946.0,69939.0,0.07754355]
[1722257940080,0.02243405,69946.0,69939.0,0.08454355]
[1722257940547,0.02243405,69946.0,69939.0,0.07754355]
[1722257940761,0.04289695,69947.0,69939.0,0.08554355]
[1722257941200,0.0429116,69947.0,69939.0,0.07754355]
[1722257941652,0.0429116,69946.0,69939.0,0.07754355]
[1722257942777,0.0429116,69945.0,69939.0,0.07754355]
[1722257943657,0.00176399,69950.0,69939.0,0.07754355]
[1722257943658,0.0429116,69944.0,69939.0,0.07754355]
[1722257943898,0.042946,69944.0,69939.0,0.07754355]
[1722257944110,0.042946,69944.0,69939.0,0.08754355]
[1722257944551,0.042946,69944.0,69939.0,0.006]
[1722257944767,0.042946,69943.0,69939.0,0.006]
[1722257944985,0.042946,69942.0,69939.0,0.017]
[1722257945195,0.042946,69941.0,69939.0,0.017]
[1722257945860,0.042946,69941.0,69939.0,0.011]
[1722257946698,0.042946,69941.0,69937.0,0.000924]
[1722257946912,0.042946,69941.0,69939.0,0.012]
[1722257947132,0.04294766,69941.0,69939.0,0.012]
[1722257947339,0.08589532,69941.0,69939.0,0.012]
[1722257947554,0.06442361,69940.0,69939.0,0.007]
[1722257947790,0.06442304,69940.0,69939.0,0.007]
[1722257947999,0.08589532,69941.0,69939.0,0.007]
[1722257948212,0.08685485,69940.0,69939.0,0.021]
[1722257948430,0.08685485,69940.0,69939.0,0.014]
[1722257948431,0.02243537,69940.0,69939.0,0.014]
[1722257948642,0.08685485,69940.0,69939.0,0.014]
[1722257948845,0.08685485,69940.0,69937.0,0.000924]
[1722257949063,0.04294582,69938.0,69937.0,0.014924]
[1722257949723,0.06441948,69939.0,69937.0,0.014924]
[1722257950163,0.02243537,69940.0,69937.0,0.014924]
[1722257950433,0.06441295,69939.0,69937.0,0.014924]
[1722257950647,0.06441295,69938.0,69937.0,0.014924]
[1722257950871,0.43444808,69938.0,69937.0,0.014924]
[1722257951093,0.43444808,69938.0,69937.0,0.000924]
[1722257951304,0.43444808,69938.0,69937.0,0.014924]
[1722257952382,0.43444808,69938.0,69937.0,0.000924]
[1722257952798,0.43444808,69938.0,69937.0,0.011924]
[1722257952799,0.40788771,69938.0,69937.0,0.011924]
[1722257953001,0.30060683,69938.0,69937.0,0.011924]
[1722257953214,0.2770372,69938.0,69937.0,0.011924]
[1722257953419,0.30101768,69938.0,69937.0,0.011924]
[1722257954063,0.36284354,69938.0,69937.0,0.011924]
[1722257954262,0.2425,69938.0,69937.0,0.011924]
[1722257954479,0.30684805,69938.0,69937.0,0.011924]
[1722257954694,0.16434805,69938.0,69937.0,0.011924]
[1722257954897,0.16434805,69939.0,69937.0,0.011924]
[1722257955102,0.06434805,69939.0,69937.0,0.011924]
[1722257955311,0.0826,69938.0,69937.0,0.011924]
[1722257955530,0.1826,69938.0,69937.0,0.011924]
[1722257955950,0.06434805,69939.0,69937.0,0.011924]